bitfinex/quotes_BTCUSD_20240811
["timestamp","ask_amount","ask_price","bid_price","bid_amount"]
[1723374189833,0.0001,60729.0,60728.0,0.24809815]
[1723374190007,0.0001,60729.0,60728.0,0.1933913]
[1723374190349,0.0121,60729.0,60728.0,0.1933913]
[1723374190683,0.0001,60729.0,60728.0,0.1933913]
[1723374191067,0.0071,60729.0,60728.0,0.1943913]
[1723374191469,0.0001,60729.0,60728.0,0.1933913]
[1723374191791,0.0001,60729.0,60728.0,0.1943913]
[1723374191998,0.0071,60729.0,60728.0,0.1943913]
[1723374192268,0.0071,60729.0,60728.0,0.19570862]
[1723374193399,0.002,60745.0,60728.0,0.19570862]
[1723374193400,0.01,60752.0,60728.0,0.42751637]
[1723374193618,0.02,60761.0,60729.0,1.01741539]
[1723374193824,0.0767,60767.0,60736.0,0.16381492]
[1723374194029,0.02,60768.0,60739.0,0.0782]
[1723374194233,0.02,60768.0,60740.0,0.33203203]
[1723374194437,0.02,60768.0,60741.0,0.32874068]
[1723374194640,0.014,60749.0,60742.0,0.37952521]
[1723374194848,0.16381492,60767.0,60743.0,0.4925556]
[1723374195049,0.02,60768.0,60744.0,0.33203201]
[1723374195274,0.034,60768.0,60745.0,0.46457846]
[1723374195493,0.034,60768.0,60746.0,0.10651435]
[1723374195689,0.014,60768.0,60753.0,0.0782]
[1723374195927,0.014,60768.0,60754.0,0.26703794]
[1723374196138,0.014,60768.0,60754.0,0.26666323]
[1723374196308,0.014,60768.0,60755.0,0.10284831]
[1723374196517,0.0001,60769.0,60757.0,0.0782]
[1723374196713,0.0001,60769.0,60758.0,0.30476911]
[1723374196898,0.0001,60769.0,60759.0,0.10284831]
[1723374197096,0.0001,60769.0,60761.0,0.0782]
[1723374197324,0.0001,60769.0,60762.0,0.26666323]
[1723374197522,0.0001,60769.0,60763.0,0.10284831]
[1723374197867,0.08184646,60783.0,60763.0,0.10284831]
[1723374197868,0.00837,60790.0,60764.0,0.20159165]
[1723374198086,0.00837,60790.0,60765.0,0.19592552]
[1723374198268,6e-05,60789.0,60766.0,0.24201492]
[1723374198489,0.01,60786.0,60767.0,0.16754831]
[1723374198701,6e-05,60789.0,60771.0,0.0782]
[1723374198921,6e-05,60789.0,60772.0,0.10613762]
[1723374199123,6e-05,60789.0,60776.0,0.16381492]
[1723374199329,6e-05,60789.0,60777.0,0.18446393]
[1723374199538,6e-05,60789.0,60778.0,0.26678954]
[1723374199771,6e-05,60789.0,60778.0,0.16381492]
[1723374200618,0.08184646,60788.0,60778.0,0.16381492]
[1723374200818,0.08184646,60788.0,60779.0,0.03077149]
[1723374201038,6e-05,60789.0,60780.0,0.16381492]
[1723374201229,6e-05,60789.0,60780.0,0.16710483]
[1723374202007,6e-05,60789.0,60782.0,0.0782]
[1723374202210,6e-05,60789.0,60783.0,0.16710409]
[1723374202361,6e-05,60789.0,60784.0,0.02760756]
[1723374202560,6e-05,60789.0,60786.0,0.0647]
[1723374202781,6e-05,60789.0,60787.0,0.167104]
[1723374203188,0.00506,60789.0,60787.0,0.16381492]
[1723374203393,0.0015,60792.0,60788.0,0.24201492]
[1723374203595,0.00837,60822.0,60791.0,0.16381492]
[1723374203596,0.01,60821.0,60791.0,0.16381492]
[1723374203811,0.002,60819.0,60793.0,0.16381492]
[1723374204010,0.02,60821.0,60794.0,0.10092182]
[1723374204217,0.02,60821.0,60795.0,0.16381492]
[1723374204423,0.01,60818.0,60795.0,0.16381492]
[1723374204627,0.002,60819.0,60795.0,0.16381492]
[1723374204881,0.002,60819.0,60792.0,0.0782]
[1723374204882,0.01,60818.0,60796.0,0.23121492]
[1723374205079,0.0767,60823.0,60798.0,0.0831]
[1723374205080,0.01,60820.0,60798.0,0.0831]
[1723374205258,0.002,60822.0,60798.0,0.24691492]
[1723374205259,0.01,60818.0,60798.0,0.24691492]
[1723374205500,0.002,60822.0,60798.0,0.24691492]
[1723374205709,0.0767,60823.0,60798.0,0.24691492]
[1723374206050,3.417e-05,60809.0,60798.0,0.24691492]
[1723374206570,3.417e-05,60809.0,60808.0,0.16381492]
[1723374206571,0.00803417,60809.0,60808.0,0.16381492]
[1723374206769,3.417e-05,60809.0,60808.0,0.16710246]
[1723374206976,3.417e-05,60809.0,60808.0,0.19557517]
[1723374207219,0.00803417,60809.0,60808.0,0.19557517]
[1723374207429,3.417e-05,60809.0,60808.0,0.19557517]
[1723374207631,0.00803417,60809.0,60808.0,0.19657517]
[1723374207837,0.00803417,60809.0,60738.0,0.13026851]
[1723374207838,0.02,60786.0,60785.0,0.04647506]
[1723374208038,0.02,60786.0,60762.0,0.49107874]
[1723374208039,0.01,60777.0,60762.0,0.49107874]
[1723374208252,0.08184646,60768.0,60762.0,0.49107874]
[1723374208616,0.08184646,60768.0,60753.0,0.0674]
[1723374208826,0.08184646,60768.0,60754.0,0.01505]
[1723374209072,0.0833,60769.0,60755.0,0.16381492]
[1723374210115,0.0833,60769.0,60754.0,0.01605]
[1723374210116,0.09184646,60761.0,60754.0,0.01605]
[1723374210344,0.01,60756.0,60754.0,0.001]
[1723374210541,0.0933,60755.0,60739.0,0.00329184]
[1723374210748,0.08184646,60754.0,60740.0,0.16381492]
[1723374210954,0.09184646,60753.0,60740.0,0.16381492]
[1723374211233,0.08184646,60746.0,60725.0,0.0831]
[1723374211434,0.08184646,60746.0,60715.0,0.1505]
[1723374211435,0.01,60735.0,60715.0,0.1505]
[1723374211639,0.0833,60745.0,60726.0,0.00329262]
[1723374211640,0.0933,60745.0,60726.0,0.00329262]
[1723374211765,0.01,60742.0,60726.0,0.00329262]
[1723374211964,0.01,60733.0,60715.0,0.1505]
[1723374212164,0.02,60742.0,60715.0,0.1505]
[1723374212390,0.0833,60745.0,60731.0,0.16391492]
[1723374212613,0.0833,60745.0,60732.0,0.01968388]
[1723374212819,0.0833,60745.0,60732.0,0.01639149]
[1723374212820,0.01,60742.0,60732.0,0.01639149]
[1723374213520,0.0641,60747.0,60732.0,0.01639149]
[1723374213521,0.0833,60757.0,60734.0,0.23121492]
[1723374213722,0.014,60753.0,60734.0,0.23121492]
[1723374213928,0.08184646,60747.0,60734.0,0.23121492]
[1723374214133,0.08184646,60747.0,60735.0,0.03308064]
[1723374214134,0.08184646,60740.0,60735.0,0.03308064]
[1723374214304,0.014,60742.0,60735.0,0.03308064]
[1723374214503,0.08184646,60747.0,60734.0,0.16381492]
[1723374214703,0.02,60755.0,60735.0,0.00329224]
[1723374214704,0.01,60755.0,60735.0,0.00329224]
[1723374214933,0.014,60753.0,60736.0,0.16381492]
[1723374215139,0.014,60753.0,60737.0,0.00329185]
[1723374215294,0.01,60755.0,60738.0,0.16381492]
[1723374215503,0.01,60755.0,60739.0,0.02000251]
[1723374215702,0.01,60755.0,60740.0,0.16381492]
[1723374215911,0.1033,60757.0,60741.0,0.00329184]
[1723374216138,0.01,60755.0,60742.0,0.16381492]
[1723374216337,0.0833,60757.0,60743.0,0.00329169]
[1723374216545,0.01,60763.0,60744.0,0.19050665]
[1723374216745,0.08184646,60754.0,60744.0,0.19050665]
[1723374216969,0.08184646,60754.0,60744.0,0.02669173]
[1723374216970,0.08184646,60747.0,60744.0,0.02669173]
[1723374217228,0.01,60741.0,60740.0,0.00329196]
[1723374217387,0.01,60739.0,60736.0,0.0009141]
[1723374217550,0.09184646,60737.0,60736.0,0.0009141]
[1723374217753,0.08184646,60737.0,60736.0,0.0009141]
[1723374217951,0.01,60737.0,60736.0,0.0009141]
[1723374218250,0.0741,60744.0,60736.0,0.0009141]
[1723374218684,0.014,60739.0,60736.0,0.0009141]
[1723374219626,0.014,60739.0,60737.0,0.16381492]
[1723374219855,0.014,60739.0,60738.0,0.0164729]
[1723374220083,0.014,60739.0,60738.0,0.33078782]
[1723374220595,0.08184646,60754.0,60738.0,0.33078782]
[1723374220596,0.08184646,60747.0,60738.0,0.33078782]
[1723374220817,0.08184646,60747.0,60738.0,0.0164729]
[1723374220818,0.08184646,60740.0,60738.0,0.0164729]
[1723374221041,0.08184646,60740.0,60736.0,0.0009141]
[1723374221553,0.014,60739.0,60736.0,0.0009141]
[1723374221792,0.16514646,60747.0,60736.0,0.0009141]
[1723374222035,0.08184646,60754.0,60737.0,0.16381492]
[1723374222231,0.08184646,60754.0,60738.0,0.0164729]
[1723374222472,0.08184646,60754.0,60739.0,0.16381492]
[1723374222727,0.16514646,60761.0,60740.0,0.24691492]
[1723374222969,0.08184646,60761.0,60741.0,0.09484185]
[1723374223201,0.17597746,60768.0,60744.0,0.16381492]
[1723374223424,0.17597746,60768.0,60748.0,0.16381492]
[1723374223654,0.09267746,60768.0,60749.0,0.0831]
[1723374224120,0.014,60754.0,60750.0,0.16710591]
[1723374224122,0.014,60754.0,60750.0,0.25888727]
[1723374224357,0.08184646,60767.0,60753.0,0.16381492]
[1723374224598,0.08184646,60767.0,60754.0,0.09177661]
[1723374224844,0.08184646,60767.0,60755.0,0.25559284]
[1723374225121,0.08184646,60767.0,60755.0,0.16381492]
[1723374225383,0.014831,60768.0,60756.0,0.02654137]
[1723374225649,0.014831,60768.0,60758.0,0.16381492]
[1723374225892,0.014831,60768.0,60759.0,0.35888414]
[1723374226133,0.014831,60768.0,60760.0,0.09177879]
[1723374226372,0.014831,60768.0,60761.0,0.00329028]
[1723374226373,0.000831,60768.0,60761.0,0.00329028]
[1723374226609,0.014,60767.0,60762.0,0.30019211]
[1723374226843,0.000831,60768.0,60762.0,0.30019211]
[1723374226844,0.000831,60768.0,60763.0,0.09506908]
[1723374227085,0.000831,60768.0,60764.0,0.16381492]
[1723374227337,0.014831,60768.0,60765.0,0.16710516]
[1723374227584,0.000831,60768.0,60766.0,0.0672]
[1723374227824,0.09584646,60767.0,60762.0,0.0455984]
[1723374228077,0.09584646,60767.0,60763.0,0.16381492]
[1723374228320,0.08184646,60767.0,60763.0,0.16381492]
[1723374229051,0.000831,60768.0,60763.0,0.16381492]
[1723374229286,0.08184646,60766.0,60763.0,0.16381492]
[1723374229779,0.000831,60768.0,60763.0,0.16381492]
[1723374230045,0.000831,60768.0,60764.0,0.01638149]
[1723374230556,0.014,60767.0,60764.0,0.18019641]
[1723374230559,0.000831,60768.0,60764.0,0.18019641]
[1723374231076,0.014,60766.0,60764.0,0.18019641]
[1723374231353,0.000831,60768.0,60764.0,0.18019641]
[1723374231632,0.014831,60768.0,60764.0,0.18119641]
[1723374231855,0.014831,60768.0,60765.0,0.01821094]
[1723374232095,0.08184646,60767.0,60766.0,0.16381492]
[1723374232593,0.014831,60768.0,60766.0,0.16381492]
[1723374233366,0.08184646,60767.0,60766.0,0.16381492]
[1723374234335,0.08184646,60767.0,60766.0,0.16481492]
[1723374234584,0.08184646,60767.0,60766.0,0.18220881]
[1723374234835,0.09584646,60767.0,60766.0,0.18320881]
[1723374235317,0.10584646,60767.0,60766.0,0.001]
[1723374235580,0.09584646,60767.0,60766.0,0.001]
[1723374236093,0.014,60767.0,60766.0,0.001]
[1723374236331,0.014,60767.0,60766.0,0.16481492]
[1723374236573,0.014,60767.0,60766.0,0.18171678]
[1723374237533,0.013,60767.0,60766.0,0.18171678]
[1723374238304,0.013,60767.0,60766.0,0.27391537]
[1723374240919,0.013,60767.0,60766.0,0.36101537]
[1723374241130,0.013,60767.0,60766.0,0.26881678]
[1723374241333,0.013,60767.0,60766.0,0.36105023]
[1723374242156,0.013,60767.0,60766.0,0.42825023]
[1723374242763,0.000831,60768.0,60766.0,0.42725023]
[1723374242974,0.000831,60768.0,60767.0,0.29886469]
[1723374243221,0.000831,60768.0,60767.0,0.35235209]
[1723374243632,0.000831,60768.0,60767.0,0.52311135]
[1723374244042,0.014831,60768.0,60767.0,0.52311135]
[1723374244248,0.014831,60768.0,60767.0,0.51989647]
[1723374244456,0.000831,60768.0,60767.0,0.51989647]
[1723374244667,0.000831,60768.0,60767.0,0.37738456]
[1723374244871,0.000831,60768.0,60767.0,0.51996554]
[1723374245685,0.000831,60768.0,60767.0,0.52096554]
[1723374245920,0.010831,60768.0,60767.0,0.52089969]
[1723374246119,0.000831,60768.0,60767.0,0.51989969]
[1723374246534,0.001831,60768.0,60767.0,0.52689969]
[1723374247553,0.001831,60768.0,60767.0,0.21363124]
[1723374247709,0.001831,60768.0,60767.0,0.52752677]
[1723374251119,0.001831,60768.0,60767.0,0.52702401]
[1723374251351,0.001831,60768.0,60767.0,0.98633437]
[1723374251601,0.001831,60768.0,60767.0,1.70633437]
[1723374251826,0.001831,60768.0,60767.0,1.8185889]
[1723374252073,0.001831,60768.0,60767.0,1.90136102]
[1723374252488,0.082,60802.0,60767.0,1.75256102]
[1723374252688,0.01,60801.0,60787.0,0.31261492]
[1723374252959,0.01,60801.0,60788.0,0.31339277]
[1723374253156,0.082,60802.0,60789.0,0.47720769]
[1723374253437,0.082,60802.0,60790.0,0.31668181]
[1723374253696,0.14853,60808.0,60793.0,0.16381492]
[1723374253897,0.14853,60808.0,60794.0,0.52850861]
[1723374254104,0.00083,60808.0,60797.0,0.16381492]
[1723374254323,0.00083,60808.0,60798.0,0.31664665]
[1723374254538,0.00083,60808.0,60799.0,0.26907129]
[1723374254745,0.00083,60808.0,60800.0,0.31681859]
[1723374254954,0.00083,60808.0,60807.0,0.16381492]
[1723374255173,0.08184646,60830.0,60807.0,0.38965615]
[1723374255378,0.082,60831.0,60818.0,0.16381492]
[1723374255591,0.082,60831.0,60819.0,0.09600236]
[1723374255818,0.082,60831.0,60820.0,0.25652979]
[1723374256026,0.082,60831.0,60821.0,0.12198412]
[1723374256224,0.082,60836.0,60822.0,0.25709896]
[1723374256454,0.082,60836.0,60823.0,0.09328404]
[1723374256455,0.08184646,60827.0,60823.0,0.09328404]
[1723374256696,0.08184646,60827.0,60824.0,0.16381492]
[1723374256912,0.01,60825.0,60821.0,0.02598173]
[1723374257121,0.09184646,60827.0,60822.0,0.16381492]
[1723374257319,0.08184646,60827.0,60822.0,0.16381492]
[1723374257697,0.09184646,60827.0,60822.0,0.16381492]
[1723374257872,0.01,60824.0,60822.0,0.16381492]
[1723374258078,0.01,60826.0,60822.0,0.16381492]
[1723374258284,0.08196,60825.0,60823.0,0.01648149]
[1723374258550,0.08196,60825.0,60823.0,0.18029641]
[1723374258761,0.08196,60825.0,60823.0,0.18129641]
[1723374258932,0.08196,60825.0,60823.0,0.18029641]
[1723374259165,0.08267746,60827.0,60824.0,0.16381492]
[1723374259368,0.013,60826.0,60825.0,0.01802964]
[1723374259573,0.032,60823.0,60799.0,0.04295453]
[1723374259747,0.18681492,60826.0,60776.0,0.7961]
[1723374259748,0.01,60802.0,60784.0,0.1488]
[1723374259999,0.08184646,60807.0,60787.0,0.09221179]
[1723374260000,0.01,60792.0,60787.0,0.09221179]
[1723374260194,0.01,60784.0,60771.0,0.4796]
[1723374260400,0.01,60784.0,60770.0,0.63987874]
[1723374260401,0.0657,60789.0,60772.0,0.14356891]
[1723374260570,0.0657,60789.0,60773.0,0.17149825]
[1723374260790,0.0657,60789.0,60774.0,0.09315348]
[1723374261146,0.0657,60789.0,60776.0,0.16381492]
[1723374261350,0.082,60788.0,60777.0,0.09315348]
[1723374261548,0.082,60788.0,60778.0,0.16381492]
[1723374261772,0.01,60794.0,60779.0,0.02569684]
[1723374261977,0.01,60794.0,60780.0,0.16381492]
[1723374262341,0.014,60789.0,60781.0,0.09335467]
[1723374262542,0.22954646,60796.0,60782.0,0.16710451]
[1723374262791,0.014,60788.0,60783.0,0.00328941]
[1723374262994,0.014,60788.0,60784.0,0.1126323]
[1723374263146,0.082,60796.0,60785.0,0.16710425]
[1723374263361,0.08184646,60795.0,60785.0,0.16381492]
[1723374263561,0.01,60797.0,60786.0,0.26055918]
[1723374263562,0.014,60789.0,60786.0,0.26055918]
[1723374263765,0.014,60789.0,60787.0,0.09345143]
[1723374263766,0.008737,60789.0,60787.0,0.09345143]
[1723374263964,0.008737,60789.0,60788.0,0.19941957]
[1723374264169,0.008737,60789.0,60788.0,0.29616016]
[1723374264374,0.008737,60789.0,60788.0,0.20270873]
[1723374264573,0.008737,60789.0,60788.0,0.29633718]
[1723374264784,0.0861,60820.0,60789.0,0.157]
[1723374264987,0.49107874,60818.0,60810.0,0.16381492]
[1723374265194,0.1542,60823.0,60811.0,0.0936189]
[1723374265401,0.01,60815.0,60811.0,0.0936189]
[1723374265605,0.01,60809.0,60799.0,0.0703]
[1723374265807,0.01,60804.0,60800.0,0.25729334]
[1723374266016,0.002,60801.0,60790.0,0.1070048]
[1723374266217,0.002,60801.0,60783.0,0.157]
[1723374266218,0.01,60801.0,60791.0,0.09205986]
[1723374266436,0.08184646,60800.0,60792.0,0.09205986]
[1723374266657,0.10184646,60800.0,60793.0,0.09205986]
[1723374266867,0.10184646,60800.0,60781.0,0.1]
[1723374266868,0.0861,60799.0,60781.0,0.1]
[1723374267112,0.0861,60799.0,60789.0,0.09207051]
[1723374267113,0.09184646,60792.0,60789.0,0.09207051]
[1723374267317,0.08184646,60792.0,60790.0,0.09207051]
[1723374267525,0.08184646,60792.0,60791.0,0.09207051]
[1723374267827,0.08184646,60792.0,60791.0,0.25458547]
[1723374268226,0.1061,60799.0,60791.0,0.16381492]
[1723374268227,0.01,60797.0,60791.0,0.16381492]
[1723374268432,0.0961,60799.0,60792.0,0.18358579]
[1723374268631,0.0861,60799.0,60792.0,0.19438738]
[1723374268835,0.0861,60799.0,60795.0,0.03]
[1723374269038,0.0861,60799.0,60796.0,0.0032893]
[1723374269237,0.0861,60799.0,60796.0,0.01408428]
[1723374269438,0.0861,60799.0,60797.0,0.18625299]
[1723374269648,0.08184646,60800.0,60797.0,0.18625299]
[1723374269649,0.08184646,60800.0,60797.0,0.19704632]
[1723374271107,0.08184646,60800.0,60798.0,0.09471036]
[1723374271108,0.009,60799.0,60798.0,0.09471036]
[1723374271298,0.009,60799.0,60798.0,0.25523615]
[1723374271501,0.08184646,60800.0,60798.0,0.26602783]
[1723374271703,0.005,60800.0,60799.0,0.28708274]
[1723374271833,0.005,60800.0,60799.0,0.29787277]
[1723374272039,0.14994646,60815.0,60800.0,0.0867]
[1723374272040,0.08184646,60815.0,60800.0,0.0867]
[1723374272261,0.08184646,60815.0,60808.0,0.16381492]
[1723374272462,0.08184646,60815.0,60809.0,0.09470939]
[1723374272672,0.08184646,60815.0,60810.0,0.28108858]
[1723374272919,0.08184646,60815.0,60811.0,0.09142123]
[1723374273082,0.08184646,60815.0,60812.0,0.16381492]
[1723374273302,0.0861,60813.0,60812.0,0.01076855]
[1723374273536,0.0861,60813.0,60800.0,0.00328855]
[1723374273883,0.08184646,60807.0,60801.0,0.25512397]
[1723374273994,0.08184646,60807.0,60803.0,0.16381492]
[1723374274194,0.08184646,60807.0,60804.0,0.09130905]
[1723374274406,0.08184646,60807.0,60805.0,0.25537625]
[1723374274607,0.08184646,60807.0,60806.0,0.09156133]
[1723374274819,0.08184646,60807.0,60806.0,0.25537625]
[1723374275015,0.08184646,60807.0,60806.0,0.28412244]
[1723374275431,0.08984646,60815.0,60806.0,0.28412244]
[1723374275710,0.10184646,60822.0,60809.0,0.16381492]
[1723374275711,0.08184646,60822.0,60809.0,0.16381492]
[1723374275922,0.08184646,60822.0,60812.0,0.16381492]
[1723374276150,0.08184646,60822.0,60813.0,0.11655393]
[1723374276364,0.08184646,60822.0,60814.0,0.25531736]
[1723374276588,0.08184646,60822.0,60815.0,0.09150244]
[1723374276808,0.08184646,60822.0,60816.0,0.16381492]
[1723374277000,0.08184646,60822.0,60817.0,0.09150244]
[1723374277202,0.08184646,60822.0,60818.0,0.19185181]
[1723374277383,0.08184646,60822.0,60819.0,0.09150244]
[1723374277602,0.08184646,60822.0,60820.0,0.16381492]
[1723374278194,0.09584646,60822.0,60820.0,0.16381492]
[1723374278405,0.08184646,60822.0,60820.0,0.16381492]
[1723374278602,0.08184646,60822.0,60821.0,0.11145871]
[1723374278842,0.10584646,60822.0,60821.0,0.27527363]
[1723374279051,0.09584646,60822.0,60821.0,0.18332889]
[1723374279257,0.09584646,60822.0,60821.0,0.27469372]
[1723374279462,0.10984646,60822.0,60821.0,0.18332889]
[1723374279663,0.10984646,60822.0,60821.0,0.27469318]
[1723374279870,0.10984646,60822.0,60821.0,0.18332889]
[1723374280285,0.02,60821.0,60820.0,0.001]
[1723374280489,0.01,60821.0,60820.0,0.001]
[1723374280666,0.01,60821.0,60803.0,0.49107874]
[1723374280667,0.02,60821.0,60803.0,0.49107874]
[1723374280896,0.08184646,60811.0,60804.0,0.30589071]
[1723374281109,0.08184646,60811.0,60805.0,0.18964018]
[1723374281328,0.01,60807.0,60806.0,0.09136353]
[1723374281525,0.01,60807.0,60795.0,0.03819652]
[1723374281526,0.02,60800.0,60783.0,0.49107874]
[1723374281725,0.0861,60807.0,60783.0,0.49107874]
[1723374281726,0.08184646,60792.0,60783.0,0.49107874]
[1723374281904,0.08184646,60792.0,60784.0,0.09145633]
[1723374282141,0.08184646,60792.0,60791.0,0.16472792]
[1723374282345,0.08184646,60792.0,60791.0,0.27265812]
[1723374282964,0.09184646,60792.0,60791.0,0.27265812]
[1723374283176,0.09184646,60792.0,60791.0,0.01738579]
[1723374283177,0.11184646,60792.0,60791.0,0.01738579]
[1723374283389,0.10184646,60792.0,60791.0,0.000913]
[1723374283572,0.08184646,60792.0,60791.0,0.000913]
[1723374283807,0.02,60797.0,60791.0,0.16472792]
[1723374284014,0.01,60795.0,60792.0,0.25831121]
[1723374284216,0.02,60797.0,60792.0,0.01078951]
[1723374284626,0.02,60797.0,60791.0,0.002913]
[1723374284829,0.02,60797.0,60792.0,0.09165616]
[1723374285045,0.093,60793.0,60792.0,0.09165616]
[1723374285238,0.032,60792.0,60791.0,0.000913]
[1723374285448,0.055,60792.0,60791.0,0.000913]
[1723374285655,0.13684646,60792.0,60791.0,0.000913]
[1723374285860,0.02,60780.0,60767.0,0.065892]
[1723374286077,0.02,60780.0,60760.0,0.0814]
[1723374286078,0.01,60775.0,60768.0,0.30612457]
[1723374286285,0.08184646,60777.0,60769.0,0.09154689]
[1723374286493,0.08184646,60777.0,60770.0,0.09148053]
[1723374286705,0.08184646,60777.0,60768.0,0.16381492]
[1723374286706,0.08184646,60777.0,60771.0,0.09148053]
[1723374286940,0.01,60786.0,60772.0,0.29323033]
[1723374287143,0.08184646,60784.0,60773.0,0.14223991]
[1723374287272,0.08184646,60784.0,60774.0,0.30934475]
[1723374287470,0.08184646,60784.0,60775.0,0.1422451]
[1723374287744,0.08184646,60792.0,60781.0,0.16381492]
[1723374287948,0.08184646,60792.0,60782.0,0.09477008]
[1723374288163,0.014,60786.0,60784.0,0.1477]
[1723374288363,0.014,60786.0,60785.0,0.25858481]
[1723374288567,0.08184646,60799.0,60785.0,0.25858481]
[1723374288568,0.08184646,60799.0,60785.0,0.30939353]
[1723374288770,0.08184646,60799.0,60788.0,0.16381492]
[1723374288973,0.08184646,60799.0,60789.0,0.14557479]
[1723374289126,0.08184646,60799.0,60790.0,0.30602561]
[1723374289330,0.08184646,60799.0,60791.0,0.09476965]
[1723374289529,0.10184646,60799.0,60792.0,0.09148053]
[1723374289752,0.10184646,60799.0,60787.0,0.09132382]
[1723374289932,0.10184646,60799.0,60784.0,0.1477]
[1723374289933,0.01,60798.0,60788.0,0.14205472]
[1723374290107,0.01,60798.0,60789.0,0.14205472]
[1723374290296,0.01,60798.0,60790.0,0.09132382]
[1723374290492,0.01,60798.0,60784.0,0.1477]
[1723374290493,0.01,60798.0,60791.0,0.09132382]
[1723374290732,0.02,60798.0,60792.0,0.09132382]
[1723374290938,0.01,60798.0,60793.0,0.09132382]
[1723374291127,0.01,60798.0,60794.0,0.09132382]
[1723374291128,0.015,60798.0,60794.0,0.09132382]
[1723374291334,0.005,60798.0,60795.0,0.26427112]
[1723374291599,0.08184646,60799.0,60796.0,0.09132382]
[1723374291815,0.08184646,60799.0,60797.0,0.16381492]
[1723374292036,0.005,60798.0,60797.0,0.16381492]
[1723374292170,0.005,60798.0,60797.0,0.25509584]
[1723374292373,0.005,60798.0,60797.0,0.28480788]
[1723374292795,0.08184646,60799.0,60797.0,0.28480788]
[1723374293001,0.08184646,60799.0,60798.0,0.09128092]
[1723374293172,0.08184646,60799.0,60798.0,0.25509584]
[1723374293374,0.08184646,60799.0,60798.0,0.25557888]
[1723374293599,0.08184646,60799.0,60798.0,0.28502121]
[1723374293807,0.09184646,60799.0,60798.0,0.12120629]
[1723374294009,0.09184646,60799.0,60795.0,0.00913238]
[1723374294010,0.19484646,60799.0,60795.0,0.00913238]
[1723374294365,0.01,60793.0,60779.0,0.1]
[1723374294570,0.08184646,60791.0,60781.0,0.16381492]
[1723374294780,0.08184646,60791.0,60782.0,0.09180541]
[1723374294960,0.08184646,60791.0,60783.0,0.30595236]
[1723374295135,0.08184646,60791.0,60784.0,0.09180541]
[1723374295336,0.08184646,60791.0,60785.0,0.30648328]
[1723374295541,0.08184646,60791.0,60786.0,0.09180541]
[1723374295718,0.02,60793.0,60787.0,0.25562033]
[1723374295919,0.02,60793.0,60788.0,0.12240065]
[1723374296119,0.000831,60798.0,60789.0,0.25562033]
[1723374296120,0.01,60794.0,60789.0,0.25562033]
[1723374296324,0.08184646,60792.0,60790.0,0.09180541]
[1723374296545,0.09184646,60792.0,60791.0,0.16381492]
[1723374296868,0.09184646,60792.0,60791.0,0.25562033]
[1723374297069,0.09184646,60792.0,60791.0,0.28424189]
[1723374297274,0.09184646,60792.0,60791.0,0.28411769]
[1723374297693,0.01,60793.0,60791.0,0.19243648]
[1723374297896,0.01,60792.0,60791.0,0.19243648]
[1723374298252,0.01,60793.0,60791.0,0.28404041]
[1723374298409,0.01,60793.0,60792.0,0.12020797]
[1723374298609,0.01,60793.0,60792.0,0.28402289]
[1723374298818,0.000831,60798.0,60793.0,0.0663]
[1723374298979,0.000831,60798.0,60794.0,0.25871612]
[1723374299331,0.000831,60798.0,60795.0,0.091612]
[1723374299552,0.000831,60798.0,60796.0,0.20731694]
[1723374299754,0.08184646,60797.0,60796.0,0.20731694]
[1723374299953,0.08184646,60797.0,60796.0,0.29862448]
[1723374300294,0.19484646,60797.0,60796.0,0.13480956]
[1723374300490,0.19484646,60797.0,60781.0,0.1477]
[1723374300491,0.01,60792.0,60791.0,0.002]
[1723374300692,0.02,60792.0,60791.0,0.16381492]
[1723374300922,0.02,60792.0,60791.0,0.25545427]
[1723374301325,0.01,60792.0,60791.0,0.25545427]
[1723374301696,0.02,60792.0,60791.0,0.25545427]
[1723374301898,0.02,60792.0,60791.0,0.2839997]
[1723374302756,0.01,60792.0,60791.0,0.2839997]
[1723374302961,0.02,60792.0,60791.0,0.2839997]
[1723374303196,0.055,60792.0,60791.0,0.003]
[1723374303397,0.138,60792.0,60791.0,0.003]
[1723374304414,0.01,60777.0,60773.0,0.49107874]
[1723374304561,0.01,60777.0,60774.0,0.36903338]
[1723374304765,0.01,60777.0,60775.0,0.09059419]
[1723374304966,0.01,60777.0,60776.0,0.25440911]
[1723374305318,0.01,60779.0,60776.0,0.25440911]
[1723374305522,0.01,60777.0,60776.0,0.16381492]
[1723374305796,0.032,60777.0,60776.0,0.11341973]
[1723374305994,0.02,60776.0,60772.0,0.0009141]
[1723374306198,0.01,60774.0,60773.0,0.09056345]
[1723374306730,0.01,60774.0,60773.0,0.09385399]
[1723374306933,0.00947547,60774.0,60773.0,0.09385399]
[1723374307541,0.00947547,60774.0,60773.0,0.09382859]
[1723374307778,0.00947547,60774.0,60773.0,0.11968435]
[1723374308133,0.03147547,60777.0,60773.0,0.11968435]
[1723374308336,0.002,60777.0,60774.0,0.25435297]
[1723374308546,0.02947547,60783.0,60775.0,0.18192816]
[1723374308793,0.02947547,60783.0,60776.0,0.25435297]
[1723374308989,0.01,60783.0,60777.0,0.18146178]
[1723374309212,0.01,60783.0,60778.0,0.25435297]
[1723374309411,0.01,60783.0,60779.0,0.09382797]
[1723374309620,0.08184646,60782.0,60780.0,0.25435297]
[1723374309788,0.11132193,60782.0,60781.0,0.09053805]
[1723374310008,0.11132193,60782.0,60781.0,0.28361481]
[1723374310198,0.11132193,60782.0,60781.0,0.11979989]
[1723374310400,0.11132193,60782.0,60781.0,0.08984131]
[1723374310401,0.11332193,60782.0,60781.0,0.08984131]
[1723374310575,0.022,60777.0,60776.0,0.0009141]
[1723374310777,0.1035,60777.0,60776.0,0.0905645]
[1723374311241,0.11297547,60777.0,60776.0,0.0905645]
[1723374311471,0.01,60777.0,60776.0,0.0905645]
[1723374311671,0.01,60777.0,60776.0,0.09971236]
[1723374312123,0.17987547,60777.0,60776.0,0.09971236]
[1723374312334,0.20587547,60777.0,60776.0,0.0009141]
[1723374312480,0.19587547,60777.0,60776.0,0.0009141]
[1723374312887,0.20287547,60777.0,60776.0,0.0009141]
[1723374313066,0.19287547,60777.0,60776.0,0.0009141]